fUSD/lending_fUSD_20250511
["ID","MTS","AMOUNT","RATE_DAILY","PERIOD"]
[360698108,1746936363919,201.98895347,0.00017,2]
[360698109,1746936363948,32.98288311,0.00017,2]
[360698110,1746936363972,383.27125763,0.00017,2]
[360698111,1746936365081,277.50276049,0.00017,2]
[360698112,1746936365881,185.00184033,0.00017,2]
[360698113,1746936366455,151.0,0.00017,2]
[360698114,1746936367073,219.00368067,0.00017,2]
[360698115,1746936391580,-356.06021549,0.00017968,2]
[360698116,1746936407162,-180.30363672,0.00017968,2]
[360698117,1746936421551,-218.78347239,0.00017865,2]
[360698118,1746936435996,-22.21652761,0.00017865,2]
[360698119,1746936442116,-996.98882181,0.00017968,2]
[360698120,1746936484230,186.59,0.00013699,2]
[360698125,1746936627260,867.1,0.00015911,2]
[360698126,1746936632064,-2108.79732598,0.00017968,2]
[360698127,1746936632076,-250.0,0.00018061,2]
[360698128,1746936632087,-178.78575532,0.00018153,2]
[360698129,1746936632098,-867.1,0.00018175,2]
[360698130,1746936632110,-145.46196731,0.00018254,2]
[360698131,1746936632337,-489.40803269,0.00018254,2]
[360698132,1746936632349,-106.23184212,0.00018258,2]
[360698133,1746936632362,-361.41704813,0.00018258,2]
[360698134,1746936632376,-167.22110975,0.00018258,2]
[360698135,1746936632388,-634.87,0.00018263,2]
[360698136,1746936632399,-634.87,0.00018268,2]
[360698137,1746936632411,-634.87,0.00018273,2]
[360698138,1746936632422,-30.06272144,0.00018278,2]
[360698139,1746936632436,-604.80727856,0.00018278,2]
[360698140,1746936632447,-634.87,0.00018282,2]
[360698141,1746936632459,-496.54356339,0.00018287,2]
[360698142,1746936632472,-138.32643661,0.00018287,2]
[360698143,1746936632491,-1200.0,0.00018291,2]
[360698144,1746936632503,-30.60972018,0.00018292,2]
[360698145,1746936632517,-604.26027982,0.00018292,2]
[360698146,1746936632528,-300.0,0.00018296,2]
[360698147,1746936632544,-634.87,0.00018297,2]
[360698148,1746936632556,-634.87,0.00018302,2]
[360698149,1746936632567,-1000.0,0.00018304,2]
[360698150,1746936632578,-634.87,0.00018306,2]
[360698151,1746936632589,-634.87,0.00018311,2]
[360698152,1746936632600,-634.87,0.00018316,2]
[360698153,1746936632611,-634.87,0.00018321,2]
[360698154,1746936632626,-634.87,0.00018325,2]
[360698155,1746936632640,-634.87,0.0001833,2]
[360698156,1746936632651,-634.87,0.00018335,2]
[360698157,1746936632663,-202.09,0.00018335,2]
[360698158,1746936632674,-634.87,0.0001834,2]
[360698159,1746936632685,-634.87,0.00018345,2]
[360698160,1746936632696,-571.14944018,0.00018349,2]
[360698161,1746936632710,-645.14055982,0.00018349,2]
[360698162,1746936632722,-467.72,0.00018367,2]
[360698163,1746936632733,-348.93944018,0.00018382,2]
[360698164,1746936632758,-152.42055982,0.00018382,2]
[360698165,1746936632774,-321.56063873,0.00018435,2]
[360698166,1746936632788,-186.30936127,0.00018435,2]
[360698167,1746936632800,-177.88,0.00018439,2]
[360698168,1746936632814,-301.14,0.00018508,2]
[360698169,1746936632826,-271.12355143,0.00018508,2]
[360698170,1746936632838,-294.73004583,0.000187,2]
[360698171,1746936632853,-137.17958853,0.000187,2]
[360698172,1746936632865,-300.0,0.00019,2]
[360698173,1746936632877,-1606.78,0.00019041,2]
[360698174,1746936632890,-317.76969105,0.00019041,2]
[360698175,1746936632965,-139.29030895,0.00019041,2]
[360698176,1746936632975,-180.30363672,0.00019177,2]
[360698177,1746936633000,-50.44628057,0.00019177,2]
[360698178,1746936633014,-158.59393492,0.00019177,2]
[360698179,1746936633025,-500.0,0.00019177,2]
[360698180,1746936633037,-352.37171782,0.00019177,2]
[360698181,1746936633049,-151.0,0.00019178,2]
[360698182,1746936633061,-638.03434726,0.00019178,2]
[360698183,1746936633076,-861.96565274,0.00019178,2]
[360698184,1746936633088,-166.99,0.00019227,2]
[360698185,1746936633099,-657.0356607,0.00019236,2]
[360698186,1746936633111,-178.78575532,0.00019267,2]
[360698187,1746936633122,-207.4,0.00019267,2]
[360698188,1746936633133,-7383.28266825,0.00019278,2]
[360698189,1746936633149,-3630.1175377,0.00019278,2]
[360698190,1746936633159,-831.6336,0.00019279,2]
[360698191,1746936633171,-5398.586747,0.00019279,2]
[360698192,1746936633184,-1459.70783706,0.00019279,2]
[360698193,1746936633197,-304.58537261,0.00019279,2]
[360698194,1746936638094,-353.30094333,0.00019279,2]
[360698195,1746936638105,-516.44914801,0.00019279,2]
[360698196,1746936638145,-7.80175199,0.00019279,2]
[360698197,1746936638155,-949.11723768,0.00019279,2]
[360698198,1746936638306,-1214.92789561,0.00019279,2]
[360698199,1746936638362,-4100.76775374,0.00019279,2]
[360698200,1746936638373,-325.4834316,0.000193,2]
[360698201,1746936638383,-1910.0,0.000193,2]
[360698202,1746936638393,-262.32,0.00019339,2]
[360698203,1746936638404,-11013.40020595,0.00019347,2]
[360698204,1746936638413,-6264.81288696,0.00019348,2]
[360698205,1746936638423,-7374.29638177,0.00019363,2]
[360698207,1746936638433,-325.48343158,0.00019367,2]
[360698209,1746936638443,-166.34,0.00019367,2]
[360698211,1746936638452,-151.0,0.00019367,2]
[360698212,1746936638461,-155.0,0.00019367,2]
[360698213,1746936638471,-151.0,0.00019367,2]
[360698214,1746936638480,-668.65185757,0.00019367,2]
[360698215,1746936638492,-151.0,0.00019367,2]
[360698216,1746936638501,-466.4,0.00019368,2]
[360698217,1746936638511,-165.17972988,0.00019372,2]
[360698218,1746936638520,-188.19764065,0.00019372,2]
[360698219,1746936638531,-500.0,0.00019372,2]
[360698220,1746936638540,-500.0,0.00019372,2]
[360698221,1746936638550,-500.0,0.00019372,2]
[360698222,1746936638560,-466.35877893,0.00019372,2]
[360698223,1746936638569,-500.0,0.00019372,2]
[360698224,1746936638579,-500.0,0.00019372,2]
[360698225,1746936638588,-391.82509335,0.00019373,2]
[360698226,1746936638598,-500.0,0.00019373,2]
[360698227,1746936638608,-500.0,0.00019373,2]
[360698228,1746936638618,-25008.23825183,0.00019373,2]
[360698229,1746936638630,-11243.49784817,0.00019373,2]
[360698230,1746936638640,-1000.0,0.00019373,2]
[360698232,1746936638650,-400.0,0.00019377,2]
[360698234,1746936638663,-400.0,0.00019377,2]
[360698236,1746936638673,-409.99699025,0.00019377,2]
[360698238,1746936638683,-400.0,0.00019377,2]
[360698240,1746936638693,-400.0,0.00019377,2]
[360698242,1746936638703,-493.77144686,0.00019377,2]
[360698244,1746936638712,-400.0,0.00019377,2]
[360698246,1746936638722,-400.0,0.00019377,2]
[360698248,1746936638731,-236.96325823,0.00019377,2]
[360698250,1746936638742,-154.415738,0.00019377,2]
[360698252,1746936638752,-400.0,0.00019377,2]
[360698254,1746936638762,-400.0,0.00019377,2]
[360698256,1746936638775,-400.0,0.00019377,2]
[360698258,1746936638785,-1404.78,0.00019377,2]
[360698260,1746936638794,-400.0,0.00019377,2]
[360698262,1746936638803,-400.0,0.00019377,2]
[360698264,1746936638815,-400.0,0.00019377,2]
[360698266,1746936638825,-400.0,0.00019377,2]
[360698268,1746936638835,-322.78981293,0.00019377,2]
[360698270,1746936638845,-400.0,0.00019377,2]
[360698272,1746936638855,-400.0,0.00019377,2]
[360698274,1746936638865,-400.0,0.00019377,2]
[360698276,1746936638875,-400.0,0.00019377,2]
[360698278,1746936638885,-400.0,0.00019377,2]
[360698280,1746936638894,-400.0,0.00019377,2]
[360698282,1746936638904,-400.0,0.00019377,2]
[360698284,1746936638913,-400.0,0.00019377,2]
[360698286,1746936638922,-692.95,0.00019377,2]
[360698288,1746936638932,-400.0,0.00019377,2]
[360698301,1746936639147,-400.0,0.00019377,2]
[360698302,1746936639156,-400.0,0.00019377,2]
[360698303,1746936639166,-400.0,0.00019377,2]
[360698304,1746936639176,-400.0,0.00019377,2]
[360698305,1746936639186,-400.0,0.00019377,2]
[360698306,1746936639196,-170.83297618,0.00019377,2]
[360698307,1746936639207,-400.0,0.00019377,2]
[360698308,1746936639217,-400.0,0.00019377,2]
[360698309,1746936639228,-400.0,0.00019377,2]
[360698310,1746936639239,-400.0,0.00019377,2]
[360698311,1746936639249,-400.0,0.00019377,2]
[360698312,1746936639258,-262.13764492,0.00019377,2]
[360698313,1746936639268,-1040.01,0.00019377,2]
[360698314,1746936639277,-400.0,0.00019377,2]
[360698315,1746936639286,-673.36,0.00019377,2]
[360698316,1746936639295,-400.0,0.00019377,2]
[360698317,1746936639305,-400.0,0.00019377,2]
[360698318,1746936639315,-400.0,0.00019377,2]
[360698319,1746936639324,-400.0,0.00019377,2]
[360698320,1746936639334,-200.0,0.00019377,2]
[360698321,1746936639343,-620.19,0.00019377,2]
[360698322,1746936639352,-1197.28,0.00019377,2]
[360698323,1746936639361,-400.0,0.00019377,2]
[360698324,1746936639370,-400.0,0.00019377,2]
[360698325,1746936639379,-400.0,0.00019377,2]
[360698326,1746936639388,-400.0,0.00019377,2]
[360698327,1746936639398,-521.45491732,0.00019377,2]
[360698328,1746936639408,-400.0,0.00019377,2]
[360698329,1746936639417,-400.0,0.00019377,2]
[360698330,1746936639427,-619.64,0.00019377,2]
[360698331,1746936639436,-400.0,0.00019377,2]
[360698332,1746936639445,-400.0,0.00019377,2]
[360698333,1746936639455,-400.99487975,0.00019377,2]
[360698334,1746936639464,-569.82,0.00019377,2]
[360698335,1746936639474,-400.0,0.00019377,2]
[360698336,1746936639484,-400.0,0.00019377,2]
[360698337,1746936639497,-400.0,0.00019377,2]
[360698338,1746936639507,-400.0,0.00019377,2]
[360698339,1746936639516,-400.0,0.00019377,2]
[360698340,1746936639526,-400.0,0.00019377,2]
[360698341,1746936639536,-400.0,0.00019377,2]
[360698342,1746936639545,-400.0,0.00019377,2]
[360698343,1746936639555,-400.0,0.00019377,2]
[360698344,1746936639566,-400.0,0.00019377,2]
[360698345,1746936639575,-400.0,0.00019377,2]
[360698346,1746936639585,-16148.52,0.00019377,2]
[360698347,1746936639594,-400.0,0.00019377,2]
[360698348,1746936639604,-421.08,0.00019377,2]
[360698349,1746936639615,-470.83681643,0.00019377,2]
[360698350,1746936639625,-400.0,0.00019377,2]
[360698351,1746936639639,-400.0,0.00019377,2]
[360698352,1746936639648,-400.0,0.00019377,2]
[360698353,1746936639659,-400.0,0.00019377,2]
[360698354,1746936639669,-400.0,0.00019377,2]
[360698355,1746936639679,-400.0,0.00019377,2]
[360698356,1746936639689,-619.51,0.00019377,2]
[360698357,1746936639698,-400.0,0.00019377,2]
[360698358,1746936639708,-400.0,0.00019377,2]
[360698359,1746936639728,-400.0,0.00019377,2]
[360698360,1746936639740,-778.74,0.00019377,2]
[360698361,1746936639750,-400.0,0.00019377,2]
[360698362,1746936639761,-400.0,0.00019377,2]
[360698363,1746936639775,-400.0,0.00019377,2]
[360698364,1746936639785,-400.0,0.00019377,2]
[360698365,1746936639795,-758.65,0.00019377,2]
[360698366,1746936639808,-400.0,0.00019377,2]
[360698367,1746936639825,-276.49847902,0.00019377,2]
[360698368,1746936639835,-400.0,0.00019377,2]
[360698369,1746936639847,-888.77,0.00019377,2]
[360698370,1746936639857,-542.30688628,0.00019377,2]
[360698371,1746936639868,-517.51645801,0.00019377,2]
[360698372,1746936639878,-159.792866,0.00019377,2]
[360698373,1746936639888,-400.0,0.00019377,2]
[360698374,1746936639897,-470.0,0.00019377,2]
[360698375,1746936639908,-400.0,0.00019377,2]
[360698376,1746936639918,-400.0,0.00019377,2]
[360698377,1746936639928,-400.0,0.00019377,2]
[360698378,1746936639938,-242.28553039,0.00019377,2]
[360698379,1746936639947,-3074.879984,0.00019377,2]
[360698380,1746936639956,-400.0,0.00019377,2]
[360698381,1746936639966,-400.0,0.00019377,2]
[360698382,1746936639975,-400.0,0.00019377,2]
[360698383,1746936639984,-400.0,0.00019377,2]
[360698384,1746936639996,-400.0,0.00019377,2]
[360698385,1746936640005,-400.0,0.00019377,2]
[360698386,1746936640016,-400.0,0.00019377,2]
[360698387,1746936640025,-400.0,0.00019377,2]
[360698388,1746936640035,-400.0,0.00019377,2]
[360698389,1746936640044,-400.0,0.00019377,2]
[360698390,1746936640054,-400.0,0.00019377,2]
[360698391,1746936640063,-400.0,0.00019377,2]
[360698392,1746936640073,-400.0,0.00019377,2]
[360698393,1746936640082,-13325.901479,0.00019377,2]
[360698394,1746936640091,-400.0,0.00019377,2]
[360698395,1746936640102,-400.0,0.00019377,2]
[360698397,1746936640112,-400.0,0.00019377,2]
[360698399,1746936640121,-400.0,0.00019377,2]
[360698401,1746936640130,-400.0,0.00019377,2]
[360698402,1746936640140,-400.0,0.00019377,2]
[360698404,1746936640149,-465.6270437,0.00019377,2]
[360698405,1746936640160,-2355.594611,0.00019377,2]
[360698406,1746936640169,-400.0,0.00019377,2]
[360698407,1746936640179,-400.0,0.00019377,2]
[360698408,1746936640188,-1060.56,0.00019377,2]
[360698409,1746936640198,-400.0,0.00019377,2]
[360698410,1746936640207,-400.0,0.00019377,2]
[360698411,1746936640217,-400.0,0.00019377,2]
[360698413,1746936640226,-400.0,0.00019377,2]
[360698414,1746936640235,-400.0,0.00019377,2]
[360698415,1746936640247,-400.0,0.00019377,2]
[360698416,1746936640256,-203.84596927,0.00019377,2]
[360698417,1746936640265,-400.0,0.00019377,2]
[360698418,1746936640274,-400.0,0.00019377,2]
[360698419,1746936640283,-402.31592153,0.00019378,2]
[360698421,1746936640292,-531.42551754,0.00019378,2]
[360698423,1746936640302,-524.9865867,0.00019378,2]
[360698424,1746936640310,-400.0,0.00019378,2]
[360698425,1746936640319,-153.01581305,0.00019378,2]
[360698426,1746936640328,-510.25264832,0.00019378,2]
[360698427,1746936640337,-402.34432502,0.00019378,2]
[360698428,1746936640346,-223.15056515,0.00019378,2]
[360698429,1746936640354,-400.0,0.00019378,2]
[360698430,1746936640363,-458.20548928,0.00019378,2]
[360698431,1746936640372,-314.07692081,0.00019378,2]
[360698432,1746936640380,-400.0,0.00019378,2]
[360698433,1746936640390,-400.0,0.00019378,2]
[360698434,1746936640399,-379.98603388,0.00019378,2]
[360698435,1746936640408,-400.0,0.00019378,2]
[360698436,1746936640418,-348.87511888,0.00019378,2]
[360698437,1746936640427,-205.44991439,0.00019378,2]
[360698438,1746936640436,-503.5397097,0.00019378,2]
[360698439,1746936640446,-213.97104549,0.00019378,2]
[360698440,1746936640455,-332.82839456,0.00019378,2]
[360698441,1746936640464,-405.04938737,0.00019378,2]
[360698442,1746936640473,-400.0,0.00019378,2]
[360698443,1746936640482,-306.73419114,0.00019378,2]
[360698444,1746936640493,-400.0,0.00019378,2]
[360698445,1746936640502,-400.0,0.00019378,2]
[360698446,1746936640511,-504.15010986,0.00019378,2]
[360698447,1746936640521,-405.15946343,0.00019378,2]
[360698448,1746936640530,-400.0,0.00019378,2]
[360698449,1746936640539,-269.06610533,0.00019378,2]
[360698450,1746936640548,-400.40335189,0.00019378,2]
[360698451,1746936640557,-400.0,0.00019378,2]
[360698452,1746936640566,-400.0,0.00019378,2]
[360698453,1746936640575,-400.0,0.00019378,2]
[360698454,1746936640584,-400.0,0.00019378,2]
[360698455,1746936640593,-473.47,0.00019378,2]
[360698456,1746936640603,-400.0,0.00019378,2]
[360698457,1746936640612,-414.86529249,0.00019378,2]
[360698458,1746936640621,-400.0,0.00019378,2]
[360698459,1746936640631,-400.0,0.00019378,2]
[360698460,1746936640640,-400.0,0.00019378,2]
[360698461,1746936640650,-400.0,0.00019378,2]
[360698462,1746936640660,-292.08,0.00019378,2]
[360698463,1746936640670,-400.0,0.00019378,2]
[360698464,1746936640680,-400.0,0.00019378,2]
[360698465,1746936640689,-511.87235503,0.00019378,2]
[360698467,1746936640699,-400.0,0.00019378,2]
[360698468,1746936640709,-400.0,0.00019378,2]
[360698469,1746936640718,-400.0,0.00019378,2]
[360698470,1746936640727,-125.93083395,0.00019378,2]
[360698471,1746936640952,-274.06916605,0.00019378,2]
[360698472,1746936640961,-400.0,0.00019378,2]
[360698473,1746936640971,-400.0,0.00019378,2]
[360698474,1746936640980,-400.0,0.00019378,2]
[360698475,1746936640989,-274.10553176,0.00019378,2]
[360698476,1746936640998,-400.0,0.00019378,2]
[360698477,1746936641009,-400.0,0.00019378,2]
[360698478,1746936641020,-400.0,0.00019378,2]
[360698479,1746936641029,-400.0,0.00019378,2]
[360698480,1746936641038,-400.0,0.00019378,2]
[360698481,1746936641048,-222.82941544,0.00019378,2]
[360698482,1746936641057,-493.2,0.00019378,2]
[360698483,1746936641066,-400.0,0.00019378,2]
[360698484,1746936641075,-400.0,0.00019378,2]
[360698485,1746936641085,-400.0,0.00019378,2]
[360698486,1746936641094,-400.0,0.00019378,2]
[360698487,1746936641104,-400.0,0.00019378,2]
[360698488,1746936641113,-400.0,0.00019378,2]
[360698489,1746936641122,-400.0,0.00019378,2]
[360698490,1746936641131,-400.0,0.00019378,2]
[360698491,1746936641140,-400.0,0.00019378,2]
[360698492,1746936641149,-400.0,0.00019378,2]
[360698493,1746936641158,-400.0,0.00019378,2]
[360698494,1746936641167,-400.0,0.00019378,2]
[360698495,1746936641177,-400.0,0.00019378,2]
[360698496,1746936641187,-400.0,0.00019378,2]
[360698497,1746936641196,-400.0,0.00019378,2]
[360698498,1746936641205,-400.0,0.00019378,2]
[360698499,1746936641215,-400.0,0.00019378,2]
[360698500,1746936641226,-400.0,0.00019378,2]
[360698501,1746936641235,-400.0,0.00019378,2]
[360698502,1746936641246,-400.0,0.00019378,2]
[360698503,1746936641255,-400.0,0.00019378,2]
[360698504,1746936641264,-400.0,0.00019378,2]
[360698505,1746936641272,-456.22840369,0.00019378,2]
[360698506,1746936641281,-400.0,0.00019378,2]
[360698507,1746936641290,-400.0,0.00019378,2]
[360698508,1746936641300,-465.14,0.00019378,2]
[360698509,1746936641309,-400.0,0.00019378,2]
[360698510,1746936641318,-488.04513451,0.00019378,2]
[360698511,1746936641328,-400.0,0.00019378,2]
[360698512,1746936641337,-400.0,0.00019378,2]
[360698513,1746936641346,-400.0,0.00019378,2]
[360698514,1746936641355,-517.3524508,0.00019378,2]
[360698515,1746936641364,-400.0,0.00019378,2]
[360698516,1746936641373,-400.0,0.00019378,2]
[360698517,1746936641382,-400.0,0.00019378,2]
[360698518,1746936641391,-400.0,0.00019378,2]
[360698519,1746936641400,-400.0,0.00019378,2]
[360698520,1746936641409,-400.0,0.00019378,2]
[360698521,1746936641418,-400.0,0.00019378,2]
[360698522,1746936641427,-521.76,0.00019378,2]
[360698523,1746936641436,-459.21,0.00019378,2]
[360698524,1746936641446,-400.0,0.00019378,2]
[360698525,1746936641455,-515.44456797,0.00019378,2]
[360698526,1746936641464,-400.0,0.00019378,2]
[360698527,1746936641473,-158.35727255,0.00019378,2]
[360698528,1746936641482,-400.0,0.00019378,2]
[360698529,1746936641492,-417.74135623,0.00019378,2]
[360698530,1746936641501,-400.0,0.00019378,2]
[360698531,1746936641511,-525.93027904,0.00019378,2]
[360698532,1746936641521,-547.88,0.00019378,2]
[360698533,1746936641530,-400.0,0.00019378,2]
[360698534,1746936641539,-400.0,0.00019378,2]
[360698535,1746936641548,-306.27073165,0.00019378,2]
[360698536,1746936641557,-412.87153934,0.00019378,2]
[360698537,1746936641566,-400.0,0.00019378,2]
[360698538,1746936641578,-400.0,0.00019378,2]
[360698539,1746936641587,-400.81929158,0.00019378,2]
[360698540,1746936641596,-400.0,0.00019378,2]
[360698541,1746936641605,-400.0,0.00019378,2]
[360698542,1746936641615,-402.52788809,0.00019378,2]
[360698543,1746936641625,-409.73066346,0.00019378,2]
[360698544,1746936641635,-400.0,0.00019378,2]
[360698545,1746936641645,-400.0,0.00019378,2]
[360698546,1746936641655,-410.575585,0.00019378,2]
[360698547,1746936641664,-400.0,0.00019378,2]
[360698548,1746936641673,-346.06273211,0.00019378,2]
[360698549,1746936641683,-497.98675684,0.00019378,2]
[360698550,1746936641692,-424.45185277,0.00019378,2]
[360698551,1746936641701,-400.0,0.00019378,2]
[360698552,1746936641710,-400.0,0.00019378,2]
[360698553,1746936641720,-400.0,0.00019378,2]
[360698554,1746936641730,-400.0,0.00019378,2]
[360698555,1746936641740,-233.83606008,0.00019378,2]
[360698556,1746936641750,-400.0,0.00019378,2]
[360698557,1746936641760,-421.86645134,0.00019378,2]
[360698558,1746936641773,-400.0,0.00019378,2]
[360698559,1746936641782,-209.12,0.00019378,2]
[360698560,1746936641792,-400.0,0.00019378,2]
[360698561,1746936641801,-400.0,0.00019378,2]
[360698562,1746936641811,-400.0,0.00019378,2]
[360698563,1746936641821,-484.78,0.00019378,2]
[360698564,1746936641831,-400.0,0.00019378,2]
[360698565,1746936641842,-400.0,0.00019378,2]
[360698566,1746936641851,-400.0,0.00019378,2]
[360698567,1746936641861,-400.0,0.00019378,2]
[360698568,1746936641871,-400.0,0.00019378,2]
[360698569,1746936641880,-400.0,0.00019378,2]
[360698570,1746936641890,-400.0,0.00019378,2]
[360698571,1746936641901,-400.0,0.00019378,2]
[360698572,1746936641910,-406.71731721,0.00019378,2]
[360698573,1746936641920,-400.0,0.00019378,2]
[360698574,1746936641930,-400.0,0.00019378,2]
[360698575,1746936641939,-400.0,0.00019378,2]
[360698576,1746936641949,-400.0,0.00019378,2]
[360698577,1746936641958,-400.0,0.00019378,2]
[360698578,1746936641968,-400.0,0.00019378,2]
[360698579,1746936641980,-400.0,0.00019378,2]
[360698580,1746936641991,-400.0,0.00019378,2]
[360698581,1746936642000,-400.0,0.00019378,2]
[360698582,1746936642010,-400.0,0.00019378,2]
[360698583,1746936642019,-400.0,0.00019378,2]
[360698584,1746936642029,-400.0,0.00019378,2]
[360698585,1746936642038,-400.0,0.00019378,2]
[360698586,1746936642048,-400.0,0.00019378,2]
[360698587,1746936642057,-400.0,0.00019378,2]
[360698588,1746936642066,-400.0,0.00019378,2]
[360698589,1746936642075,-400.0,0.00019378,2]
[360698590,1746936642083,-457.75081418,0.00019378,2]
[360698591,1746936642099,-87.36918582,0.00019378,2]
[360698592,1746936642109,-400.0,0.00019378,2]
[360698593,1746936642118,-400.0,0.00019378,2]
[360698594,1746936642127,-148.6486691,0.00019378,2]
[360698595,1746936642139,-251.3513309,0.00019378,2]
[360698596,1746936642148,-400.0,0.00019378,2]
[360698597,1746936642157,-400.0,0.00019378,2]
[360698598,1746936642166,-400.0,0.00019378,2]
[360698599,1746936642175,-400.0,0.00019378,2]
[360698600,1746936642185,-500.0,0.00019378,2]
[360698601,1746936642194,-2.02394474,0.00019378,2]
[360698602,1746936642356,-397.97605526,0.00019378,2]
[360698603,1746936642367,-400.0,0.00019378,2]
[360698604,1746936642377,-533.16,0.00019378,2]
[360698605,1746936642387,-400.0,0.00019378,2]
[360698606,1746936642396,-400.0,0.00019378,2]
[360698607,1746936642406,-400.0,0.00019378,2]
[360698608,1746936642416,-400.0,0.00019378,2]
[360698609,1746936642426,-400.0,0.00019378,2]
[360698610,1746936642435,-400.0,0.00019378,2]
[360698611,1746936642446,-400.0,0.00019378,2]
[360698612,1746936642456,-400.0,0.00019378,2]
[360698613,1746936642465,-406.82,0.00019378,2]
[360698614,1746936642475,-400.0,0.00019378,2]
[360698615,1746936642484,-400.0,0.00019378,2]
[360698616,1746936642496,-400.0,0.00019378,2]
[360698617,1746936642506,-400.0,0.00019378,2]
[360698618,1746936642515,-400.0,0.00019378,2]
[360698619,1746936642525,-233.76285851,0.00019378,2]
[360698620,1746936642534,-400.0,0.00019378,2]
[360698621,1746936642543,-401.85965002,0.00019378,2]
[360698622,1746936642552,-400.0,0.00019378,2]
[360698623,1746936642561,-403.8004693,0.00019378,2]
[360698624,1746936642571,-419.71471636,0.00019378,2]
[360698625,1746936642580,-403.47232083,0.00019378,2]
[360698626,1746936642589,-334.69724038,0.00019378,2]
[360698627,1746936642601,-74.6615176,0.00019378,2]
[360698628,1746936642611,-400.0,0.00019378,2]
[360698629,1746936642621,-403.5293768,0.00019378,2]
[360698630,1746936642631,-412.06643382,0.00019378,2]
[360698631,1746936642641,-400.0,0.00019378,2]
[360698632,1746936642651,-309.74267178,0.00019378,2]
[360698633,1746936642664,-106.33732822,0.00019378,2]
[360698634,1746936642675,-422.43944756,0.00019378,2]
[360698635,1746936642686,-168.88922845,0.00019378,2]
[360698636,1746936642696,-500.0,0.00019378,2]
[360698637,1746936642707,-401.54534696,0.00019378,2]
[360698638,1746936642717,-407.13385467,0.00019378,2]
[360698639,1746936642727,-400.0,0.00019378,2]
[360698640,1746936642736,-408.03702719,0.00019378,2]
[360698641,1746936642754,-400.87546267,0.00019378,2]
[360698642,1746936642767,-400.0,0.00019378,2]
[360698643,1746936642777,-400.0,0.00019378,2]
[360698644,1746936642788,-400.0,0.00019378,2]
[360698645,1746936642798,-401.91502097,0.00019378,2]
[360698646,1746936642808,-535.4600576,0.00019378,2]
[360698647,1746936642818,-406.93881179,0.00019378,2]
[360698648,1746936642830,-400.0,0.00019378,2]
[360698649,1746936642840,-400.0,0.00019378,2]
[360698650,1746936642850,-330.66,0.00019378,2]
[360698651,1746936642863,-173.51,0.00019378,2]
[360698652,1746936642873,-400.0,0.00019378,2]
[360698653,1746936642883,-407.49576897,0.00019378,2]
[360698664,1746936643094,-240.96,0.00019378,2]
[360698665,1746936643104,-400.0,0.00019378,2]
[360698666,1746936643114,-400.0,0.00019378,2]
[360698667,1746936643123,-400.0,0.00019378,2]
[360698668,1746936643133,-411.78800056,0.00019378,2]
[360698669,1746936643143,-400.0,0.00019378,2]
[360698670,1746936643152,-400.0,0.00019378,2]
[360698671,1746936643162,-411.61,0.00019378,2]
[360698672,1746936643172,-653.86,0.00019378,2]
[360698673,1746936643182,-400.0,0.00019378,2]